bitfinex-derivatives/quotes_ETHF0:USTF0_20250807
["timestamp","ask_amount","ask_price","bid_price","bid_amount"]
[1754587144150,63.02980534,3816.0,3815.9,0.52403]
[1754587144548,63.02980534,3816.0,3815.9,1.18503]
[1754587144750,0.3192,3815.8,3815.7,0.52405]
[1754587144961,21.319,3815.8,3815.7,0.52405]
[1754587145252,21.56140068,3815.8,3815.7,0.52405]
[1754587145453,40.8,3816.0,3815.9,0.52404]
[1754587145659,41.53464945,3816.0,3815.9,3.59184]
[1754587145850,59.5684,3816.0,3815.9,3.59184]
[1754587147052,60.2418,3816.0,3815.9,3.59184]
[1754587147451,41.9658,3816.0,3815.9,3.59184]
[1754587147647,40.8,3816.0,3815.9,3.59184]
[1754587148052,41.9658,3816.0,3815.9,3.59184]
[1754587148449,41.9658,3816.0,3815.9,1.64014]
[1754587148645,60.9039,3816.0,3815.9,1.18504]
[1754587149053,60.9039,3816.0,3815.9,1.64014]
[1754587149750,60.9039,3816.0,3815.9,2.29234]
[1754587149957,60.9039,3816.0,3815.9,3.08134]
[1754587150146,60.2398,3816.0,3815.9,3.08134]
[1754587150348,60.2398,3816.0,3814.6,1.1627]
[1754587150349,0.7605,3815.5,3814.6,1.1627]
[1754587150645,2.6059,3814.7,3814.6,0.6522]
[1754587150850,1.4246,3814.8,3814.3,0.6522]
[1754587151059,1.1565,3814.5,3814.4,1.68693]
[1754587151451,1.1565,3814.5,3814.4,1.1627]
[1754587151652,0.6641,3814.5,3814.4,1.1627]
[1754587152053,1.1565,3814.5,3814.4,1.1627]
[1754587152455,1.1565,3814.5,3814.4,1.8237]
[1754587152755,40.8,3814.7,3814.6,1.8237]
[1754587153148,41.9317,3814.7,3814.6,1.8237]
[1754587153459,40.8,3814.7,3814.6,1.8447]
[1754587153657,41.9317,3814.7,3814.6,1.8447]
[1754587153853,0.52422,3814.6,3814.3,0.6732]
[1754587154060,1.3951,3814.4,3814.2,0.52427]
[1754587154257,1.3951,3814.4,3814.0,0.6732]
[1754587154258,0.9018,3814.3,3814.0,0.6732]
[1754587154452,42.11054,3814.7,3813.7,1.2021]
[1754587154453,0.7567,3814.0,3813.7,1.2021]
[1754587154648,0.6384,3813.9,3813.8,2.37903]
[1754587154851,1.1317,3813.9,3813.8,2.37903]
[1754587155250,18.269,3814.2,3814.1,0.52429]
[1754587155460,19.4007,3814.5,3814.4,1.70575]
[1754587155761,19.4007,3814.5,3814.4,2.37895]
[1754587156151,60.2007,3814.5,3814.4,2.37895]
[1754587156361,60.4641,3814.5,3814.4,1.19745]
[1754587156661,42.1951,3814.5,3814.4,1.19745]
[1754587156962,40.8,3814.5,3814.4,2.37895]
[1754587159156,41.9317,3814.5,3814.4,2.37895]
[1754587159860,42.191,3814.5,3814.4,1.19745]
[1754587160054,42.191,3814.5,3814.4,0.52425]
[1754587160461,40.8,3814.5,3814.4,2.37895]
[1754587161161,41.9317,3814.5,3814.4,1.19745]
[1754587161465,40.8,3814.5,3814.3,0.52426]
[1754587161661,1.391,3814.4,3814.3,0.52426]
[1754587161864,1.391,3814.4,3814.3,1.72636]
[1754587162064,1.1317,3814.4,3814.3,2.37896]
[1754587162258,1.1317,3814.4,3814.3,3.61266]
[1754587162455,40.8,3814.5,3814.4,1.8547]
[1754587162768,40.8,3814.5,3814.4,3.0884]
[1754587165365,41.4384,3814.5,3814.4,3.0884]
[1754587165565,41.9317,3814.5,3814.4,3.0884]
[1754587166267,40.8,3814.5,3814.4,3.0884]
[1754587166462,41.9317,3814.5,3814.4,3.0884]
[1754587166865,42.191,3814.5,3814.4,0.4444]
[1754587167168,42.191,3814.5,3814.1,1.3258]
[1754587167169,2.2721,3814.3,3814.2,0.52426]
[1754587167472,2.6017,3814.3,3814.2,0.52426]
[1754587167768,2.6017,3814.3,3814.2,1.19746]
[1754587168269,2.6017,3814.3,3814.2,2.43116]
[1754587168570,2.3424,3814.3,3814.2,3.61266]
[1754587170059,1.9275,3814.3,3814.2,3.61266]
[1754587170459,1.4342,3814.3,3814.2,3.61266]
[1754587171271,2.6017,3814.6,3814.5,0.52423]
[1754587171770,42.7275,3814.6,3814.5,3.61263]
[1754587172071,42.9868,3814.6,3814.5,3.61263]
[1754587172369,42.9868,3814.6,3814.5,0.52423]
[1754587172966,42.9868,3814.6,3814.5,1.19743]
[1754587173167,42.9868,3814.6,3814.5,0.52423]
[1754587173572,1.7788,3814.5,3814.4,0.52424]
[1754587173866,1.91525,3814.4,3814.2,0.52426]
[1754587174169,20.8657,3814.3,3814.2,0.52426]
[1754587174380,61.6657,3814.3,3814.2,0.52426]
[1754587174570,61.6657,3814.3,3814.2,2.96006]
[1754587174967,61.6657,3814.3,3814.2,2.43116]
[1754587175171,61.6657,3814.3,3814.2,1.96096]
[1754587175770,61.6657,3814.3,3814.2,0.52426]
[1754587176168,61.6657,3814.3,3814.2,1.64186]
[1754587176472,61.6657,3814.3,3814.2,2.43116]
[1754587176673,61.6657,3814.3,3814.2,1.96096]
[1754587176971,61.4064,3814.3,3814.2,3.61266]
[1754587177172,61.6657,3814.3,3814.2,2.96006]
[1754587177470,61.6657,3814.3,3814.2,1.96096]
[1754587177872,61.6657,3814.3,3814.2,2.43116]
[1754587178169,40.8,3814.3,3814.2,3.61266]
[1754587178980,20.644,3815.1,3815.0,3.61256]
[1754587179166,0.7958,3815.1,3815.0,3.61256]
[1754587179370,18.262,3815.2,3815.0,3.61256]
[1754587179569,19.0578,3815.2,3815.1,3.0884]
[1754587179770,1.785,3815.1,3814.9,1.19737]
[1754587180078,0.52421,3814.7,3813.8,3.63688084]
[1754587180381,1.5591,3814.0,3813.9,3.61271]
[1754587180876,42.3591,3814.0,3813.9,3.61271]
[1754587181276,43.5057,3814.0,3813.9,3.61271]
[1754587182574,40.8,3814.0,3813.9,3.61271]
[1754587182773,1.4342,3814.8,3814.7,3.61259]
[1754587182975,0.7958,3814.8,3814.7,3.61259]
[1754587183772,41.5958,3814.8,3814.7,3.61259]
[1754587183972,40.8,3814.8,3814.7,3.61259]
[1754587184778,0.661,3815.4,3814.2,1.31066]
[1754587184779,0.6386,3815.8,3815.6,0.52407]
[1754587185081,20.0415,3815.7,3815.6,0.52407]
[1754587185276,20.95223074,3815.7,3815.5,0.52409]
[1754587185469,2.45008836,3815.6,3815.3,0.52411]
[1754587185675,1.2996,3815.4,3815.3,0.52411]
[1754587185979,41.9205,3815.4,3815.3,2.34591]
[1754587187382,41.9205,3815.4,3815.3,3.56141]
[1754587187676,42.5815,3815.4,3815.3,3.56141]
[1754587188180,42.5815,3815.4,3815.3,0.4478]
[1754587188376,3.0125,3815.3,3815.2,0.52413]
[1754587188582,3.0125,3815.3,3815.2,2.06693]
[1754587188783,3.0125,3815.3,3815.2,3.56143]
[1754587189080,0.7864,3815.3,3815.2,3.56143]
[1754587189280,40.8,3815.4,3815.2,1.73963]
[1754587189480,40.8,3815.4,3815.3,3.0373]
[1754587190772,40.8,3815.4,3815.2,0.52413]
[1754587190984,3.0125,3815.3,3815.2,0.95363]
[1754587191377,3.0125,3815.3,3815.2,1.40143]
[1754587191578,3.0125,3815.3,3815.2,3.22323]
[1754587191882,3.0125,3815.3,3815.2,3.56143]
[1754587192876,1.231,3815.3,3815.1,0.52414]
[1754587193083,3.0125,3815.1,3815.0,0.95365]
[1754587193279,3.0125,3815.1,3815.0,0.52415]
[1754587193480,3.0125,3815.1,3815.0,3.56145]
[1754587194487,43.8125,3815.1,3815.0,3.56145]
[1754587195585,42.5129,3815.1,3815.0,3.56145]
[1754587195890,43.1515,3815.1,3815.0,3.56145]
[1754587196085,43.8125,3815.1,3815.0,3.56145]
[1754587197588,43.8125,3815.1,3815.0,0.52415]
[1754587198382,1.231,3815.0,3814.9,0.52417]
[1754587198685,3.0125,3815.0,3814.9,0.52417]
[1754587198890,3.0125,3815.0,3814.9,3.22327]
[1754587199284,3.0125,3815.0,3814.9,2.06697]
[1754587199779,3.0125,3815.0,3814.9,1.40147]
[1754587199979,3.0125,3815.0,3814.9,0.52417]
[1754587200289,3.0125,3815.0,3814.9,2.06697]
[1754587201087,2.3515,3816.2,3816.1,1.63731]
[1754587201282,3.0125,3816.2,3816.1,2.06681]
[1754587201487,1.231,3816.2,3816.0,0.52402]
[1754587201783,3.0125,3816.1,3816.0,1.61902]
[1754587201991,41.5864,3816.1,3816.0,3.56132]
[1754587202382,41.135,3816.1,3816.0,3.56132]
[1754587203488,40.8,3816.1,3816.0,3.56132]
[1754587205584,42.5815,3816.1,3816.0,1.40132]
[1754587205791,42.5815,3816.1,3815.7,0.6655]
[1754587205792,1.231,3816.0,3815.9,0.52403]
[1754587205980,3.0125,3816.0,3815.9,0.52403]
[1754587206583,3.0125,3816.0,3815.9,1.40133]
[1754587206783,3.0125,3816.0,3815.9,3.22313]
[1754587207584,3.0125,3816.0,3815.9,3.56133]
[1754587208384,3.0125,3816.0,3815.9,2.40503]
[1754587208690,3.0125,3816.0,3815.9,2.06683]
[1754587209084,2.3515,3816.0,3815.9,3.56133]
[1754587210191,3.0125,3816.0,3815.9,3.56133]
[1754587210391,3.0125,3816.0,3815.9,2.06683]
[1754587210685,3.0125,3816.0,3815.9,0.52403]
[1754587210882,1.231,3815.2,3815.1,1.40147]
[1754587211083,3.0125,3815.2,3815.1,2.06697]
[1754587211286,19.476,3815.7,3815.6,0.5241]
[1754587211587,3.0125,3815.6,3815.5,0.5241]
[1754587213183,1.7728,3815.5,3815.4,0.52412]
[1754587213381,21.2429,3815.5,3815.4,0.52412]
[1754587214191,2.9989,3815.5,3815.4,2.05642]
[1754587214390,2.9989,3815.5,3815.4,2.70732]
[1754587214886,2.9989,3815.5,3815.4,3.20562]
[1754587215092,2.9989,3815.5,3815.4,2.05642]
[1754587215594,2.9989,3815.5,3815.4,0.52412]
[1754587216490,21.2429,3815.5,3815.4,0.52412]
[1754587218697,2.9989,3815.0,3814.9,0.5242]
[1754587219193,60.2691,3815.0,3814.8,0.5242]
[1754587219392,2.9989,3814.9,3814.8,0.5242]
[1754587220383,0.6343,3814.8,3814.2,1.96163]
[1754587220588,2.9989,3814.3,3814.2,0.52429]
[1754587220793,62.0409,3814.3,3814.2,0.52429]
[1754587220986,62.0409,3814.3,3814.2,1.62229]
[1754587221186,62.0409,3814.3,3814.2,0.52429]
[1754587221390,1.9036,3813.9,3813.8,2.70755]
[1754587221582,2.3631,3813.9,3813.8,3.53075]
[1754587221997,2.9989,3813.9,3813.8,3.53075]
[1754587222288,43.7989,3813.9,3813.8,3.53075]
[1754587223796,18.243,3814.6,3814.5,1.39565]
[1754587224100,2.9989,3814.7,3814.6,2.1832]
[1754587224295,1.1385,3814.4,3814.2,0.6509]
[1754587224499,2.9989,3814.2,3814.1,0.5243]
[1754587224998,43.7989,3814.2,3814.1,0.5243]
[1754587225192,43.7989,3814.2,3814.1,1.1852]
[1754587225592,42.5288,3814.2,3814.1,2.7075]
[1754587225798,43.7989,3814.2,3814.1,2.7075]
[1754587226494,43.7989,3814.2,3814.1,0.8714]
[1754587226695,43.7989,3814.2,3814.0,0.52431]
[1754587226898,1.7728,3814.1,3814.0,0.52431]
[1754587227097,2.9989,3814.0,3813.9,2.05662]
[1754587227294,2.9989,3814.0,3813.5,0.52438]
[1754587227295,2.3631,3813.7,3813.5,0.52438]
[1754587227495,2.9989,3813.6,3813.5,0.52438]
[1754587227691,2.9989,3813.6,3812.8,1.3112]
[1754587227692,0.52443,3813.2,3812.8,0.6509]
[1754587227890,1.9445,3812.6,3812.5,1.39592]
[1754587228100,2.9989,3812.6,3812.5,1.39592]
[1754587228501,0.3465,3812.6,3812.5,2.70772]
[1754587228699,41.1465,3812.6,3812.5,2.70772]
[1754587229104,40.8,3812.6,3812.5,2.70772]
[1754587229994,40.1065,3812.6,3812.5,2.70772]
[1754587230203,21.2439,3813.6,3813.5,0.52439]
[1754587230503,4.00665364,3815.5,3813.0,1.31113]
[1754587230504,2.9989,3813.5,3813.4,1.61959]
[1754587230895,18.245,3813.7,3813.2,0.52442]
[1754587230896,1.2261,3813.3,3813.2,0.52442]
[1754587231095,43.7989,3813.3,3813.2,0.52442]
[1754587231902,42.2418,3813.3,3813.2,1.63112]
[1754587232098,43.3788,3813.3,3813.2,1.63112]
[1754587232408,43.3788,3813.3,3813.2,1.62202]
[1754587232702,43.3788,3813.3,3813.2,0.95872]
[1754587232897,43.3788,3813.3,3813.2,0.52442]
[1754587233100,43.3788,3813.3,3813.2,1.63112]
[1754587233699,43.3788,3813.3,3813.2,1.62202]
[1754587234010,41.4358,3813.3,3813.2,1.63112]
[1754587234203,41.4358,3813.3,3813.2,1.63432]
[1754587234420,42.5728,3813.3,3813.2,1.63112]
[1754587234610,42.5728,3813.3,3813.2,1.62722]
[1754587234806,42.5728,3813.3,3813.2,1.61962]
[1754587235000,1.2261,3813.0,3812.9,1.0976]
[1754587235204,2.9989,3813.0,3812.9,1.61967]
[1754587235405,2.9989,3812.9,3812.8,0.52448]
[1754587235705,2.9989,3812.8,3812.7,0.52449]
[1754587235912,43.7989,3812.8,3812.7,0.52449]
[1754587236201,2.9989,3812.7,3812.6,0.5245]
[1754587236402,2.9989,3812.7,3812.6,0.9588]
[1754587236808,2.9989,3812.7,3812.6,0.5245]
[1754587237306,2.9989,3812.4,3812.3,1.61975]
[1754587237512,0.6358,3812.4,3812.3,1.63125]
[1754587238006,41.8929,3812.4,3812.3,1.63125]
[1754587238198,20.6071,3813.5,3813.4,0.5244]
[1754587238398,0.6343,3813.5,3813.4,0.5244]
[1754587238602,18.244,3813.8,3813.7,0.52435]
[1754587238799,1.137,3813.8,3813.5,0.52437]
[1754587239005,1.137,3813.8,3813.2,0.52442]
[1754587239006,0.5027,3813.6,3813.2,0.52442]
[1754587239200,1.137,3813.4,3813.1,0.52443]
[1754587239402,1.137,3813.4,3813.2,0.52442]
[1754587239609,40.8,3813.5,3813.3,0.5244]
[1754587240109,0.6358,3813.4,3813.3,0.5244]
[1754587240910,1.7728,3813.4,3813.3,0.5244]
[1754587241407,1.7728,3813.3,3813.2,0.52442]
[1754587242013,42.5728,3813.3,3813.2,0.52442]
[1754587242306,41.4358,3813.3,3813.2,0.52442]
[1754587243014,41.4358,3813.3,3813.2,0.56192]
[1754587243214,42.0651,3813.3,3813.2,0.56192]
[1754587243911,41.4358,3813.3,3813.2,0.56192]
[1754587244102,40.8,3813.3,3813.2,0.56802]
[1754587244707,0.6921,3813.8,3813.7,0.54146]
[1754587244910,1.2552,3814.9,3814.8,0.5242]
[1754587245213,43.8919,3814.9,3814.8,0.5556]
[1754587245413,43.8919,3814.9,3814.8,0.5617]
[1754587245615,43.3766,3814.9,3814.8,0.5617]
[1754587247017,41.4921,3814.9,3814.8,0.5617]
[1754587247211,40.8,3814.9,3814.8,0.541]
[1754587247409,1.3214,3815.6,3815.5,0.52411]
[1754587247617,1.3214,3815.6,3815.5,0.53021]
[1754587247819,1.8367,3815.6,3815.5,0.53021]
[1754587248119,0.6921,3815.6,3815.5,0.52411]
[1754587248322,1.3214,3816.0,3815.9,0.53015]
[1754587248506,1.8367,3816.0,3815.9,0.53015]
[1754587248912,42.6367,3816.0,3815.9,0.53015]
[1754587249107,42.6367,3816.0,3815.9,0.0061]
[1754587249306,42.6367,3816.0,3815.6,0.53018]
[1754587249512,42.6367,3816.0,3815.7,0.52408]
[1754587249513,1.1446,3815.8,3815.7,0.52408]
[1754587249820,1.3214,3815.7,3815.6,0.53019]
[1754587250514,0.5153,3815.7,3815.2,0.0061]
[1754587250713,0.6921,3815.9,3815.7,0.52407]
[1754587250918,1.8367,3815.8,3815.7,0.52407]
[1754587252414,3.0919,3815.8,3815.7,0.52407]
[1754587252617,1.8367,3815.7,3815.2,0.0061]
[1754587252914,3.0919,3815.3,3815.2,0.54965]
[1754587253818,3.0919,3815.3,3815.2,0.52415]
[1754587254026,1.9473,3815.8,3815.7,0.52407]
[1754587254226,3.0919,3815.8,3815.7,0.52407]
[1754587257018,3.0919,3815.8,3815.7,0.54347]
[1754587259428,0.6921,3815.8,3815.7,0.54347]
[1754587259727,0.6921,3816.9,3816.8,0.0194]
[1754587259927,1.781,3816.9,3816.8,0.0255]
[1754587260124,43.8919,3816.9,3816.8,0.54942]
[1754587260428,43.8919,3816.9,3816.8,0.0255]
[1754587260725,2.5766,3816.6,3816.5,0.52396]
[1754587261028,3.0919,3816.6,3816.5,0.53366]
[1754587261228,3.0919,3816.6,3816.5,0.54946]
[1754587261727,43.8919,3816.6,3816.5,0.0255]
[1754587261924,1.8367,3816.5,3815.7,0.0061]
[1754587262227,1.8367,3816.5,3815.4,0.0061]
[1754587262228,1.8367,3815.9,3815.8,0.52407]
[1754587262730,1.3214,3815.9,3815.8,0.53017]
[1754587263627,42.6367,3815.9,3815.8,0.52407]
[1754587263823,40.8,3815.9,3815.7,0.52407]
[1754587264133,1.8367,3815.8,3815.7,0.52407]
[1754587265034,1.1446,3815.5,3815.4,0.52412]
[1754587265231,3.0919,3815.5,3815.4,0.52412]
[1754587266139,42.6367,3815.9,3815.8,0.54347]
[1754587266840,42.6367,3815.9,3815.8,0.52407]
[1754587267334,42.6367,3815.9,3815.8,0.54957]
[1754587267532,18.229,3816.8,3816.7,0.52394]
[1754587267732,1.2552,3816.8,3816.7,0.52394]
[1754587267936,1.2552,3816.8,3816.7,0.54944]
[1754587268142,43.8919,3816.8,3816.7,0.54944]
[1754587268438,41.4921,3816.8,3816.7,0.54944]
[1754587269639,0.6921,3816.8,3816.7,0.53614]
[1754587269845,0.6293,3817.2,3816.9,0.53002]
[1754587270142,42.4921,3817.0,3816.9,0.53002]
[1754587270342,43.1214,3817.0,3816.9,0.53002]
[1754587270835,43.6367,3817.0,3816.9,0.52392]
[1754587272342,1.1446,3816.8,3816.2,1.31004]
[1754587272530,60.025,3817.0,3816.9,0.52392]
[1754587272733,43.6367,3817.0,3816.9,0.52392]
[1754587273233,43.6367,3817.0,3816.3,0.0061]
[1754587273438,1.7572,3816.8,3816.5,0.52396]
[1754587273646,1.7572,3816.9,3816.5,0.52397]
[1754587273837,1.7572,3816.8,3816.5,0.52396]
[1754587274139,60.54791,3817.0,3816.5,0.52396]
[1754587274438,1.2502,3816.9,3816.8,0.52393]
[1754587274630,1.7572,3816.9,3816.8,0.52393]
[1754587275038,0.6267,3816.9,3816.8,0.52393]
[1754587277237,41.8,3817.0,3816.8,0.52393]
[1754587277837,42.4267,3817.0,3816.8,0.52393]
[1754587278542,0.6267,3816.9,3816.8,0.52393]
[1754587279239,41.8,3817.0,3816.8,0.52393]
[1754587279533,1.2502,3816.9,3816.8,0.52393]
[1754587279738,1.6996,3816.9,3816.8,0.52393]
[1754587279942,2.9986,3816.9,3816.8,0.52393]
[1754587280439,2.1527,3816.9,3816.8,0.52393]
[1754587280643,1.2502,3816.9,3816.8,0.52393]
[1754587280844,0.6267,3816.9,3816.8,0.52393]
[1754587281348,1.2502,3816.9,3816.8,0.52393]
[1754587282046,0.6267,3816.9,3816.8,0.52393]
[1754587282543,0.47573,3817.0,3816.8,0.52393]
[1754587282752,2.9986,3818.3,3818.2,0.52373]
[1754587283048,2.9986,3818.2,3818.1,0.52374]
[1754587284847,1.7572,3818.1,3817.5,1.30958]
[1754587285051,2.9986,3817.6,3817.5,0.52383]
[1754587286342,43.7986,3817.6,3817.5,0.52383]
[1754587287448,41.4267,3817.6,3817.5,0.52383]
[1754587287648,42.5572,3817.6,3817.5,0.52383]
[1754587288655,0.4494,3817.4,3816.5,18.215]
[1754587288853,1.7572,3817.0,3816.0,18.215]
[1754587289053,2.9986,3816.9,3816.8,0.52393]
[1754587289361,1.9986,3816.9,3816.8,0.52393]
[1754587289654,43.0836,3816.9,3816.8,1.89663]
[1754587289855,42.4601,3816.9,3816.8,2.33183]
[1754587290154,41.4267,3816.9,3816.8,2.33183]
[1754587290349,41.4267,3816.9,3816.8,2.52193]
[1754587290651,0.6235,3817.2,3816.8,1.998]
[1754587290855,2.9986,3817.2,3817.1,0.52389]
[1754587291251,43.7986,3817.2,3817.1,2.33179]
[1754587291960,43.7986,3817.2,3817.1,0.52389]
[1754587292457,43.7986,3817.2,3817.1,1.89659]
[1754587292653,43.7986,3817.2,3817.1,2.33179]
[1754587293252,42.215,3817.2,3817.1,2.33179]
[1754587293452,42.8385,3817.2,3817.1,2.33179]
[1754587293955,43.3455,3817.2,3817.1,0.52389]
[1754587295554,40.8,3817.2,3817.1,2.33179]
[1754587295750,40.8,3817.2,3817.1,2.52189]
[1754587296054,0.6235,3818.6,3817.6,1.30955]
[1754587296256,2.4916,3818.5,3818.4,0.52371]
[1754587296553,43.7986,3818.5,3818.4,0.52371]
[1754587296759,44.70776162,3818.5,3818.4,0.52371]
[1754587296958,44.04067626,3818.5,3818.4,0.52371]
[1754587297754,43.7986,3818.5,3818.4,0.52371]
[1754587298059,44.46639242,3818.5,3818.4,0.52371]
[1754587298465,43.7986,3818.5,3818.4,0.52371]
[1754587300364,1.2502,3818.4,3818.3,0.52372]
[1754587300661,2.9986,3818.4,3818.3,0.52372]
[1754587300863,2.9986,3818.3,3818.2,0.52373]
[1754587302358,2.9986,3818.3,3818.2,2.33163]
[1754587302560,0.6267,3818.3,3818.2,2.33163]
[1754587302773,2.9986,3818.3,3818.2,2.33163]
[1754587302974,2.9986,3818.3,3818.2,1.89643]
[1754587303162,2.9986,3818.3,3818.2,0.52373]
[1754587303565,1.156,3818.2,3817.5,1.30959]
[1754587303764,2.8774,3817.6,3817.5,0.52383]
[1754587304158,43.6774,3817.6,3817.5,0.52383]
[1754587304667,43.6774,3817.6,3817.5,2.30423]
[1754587304866,43.214,3817.6,3817.5,2.30423]
[1754587305470,43.214,3817.6,3817.5,4.63029084]
[1754587305664,40.8,3817.6,3817.5,4.63029084]
[1754587305864,1.156,3818.6,3818.5,0.52369]
[1754587306064,1.3982969,3818.6,3818.5,0.52369]
[1754587306269,1.156,3818.6,3818.5,0.52369]
[1754587306469,2.8774,3818.6,3818.5,0.52369]
[1754587306771,43.6774,3818.6,3818.5,0.52369]
[1754587307273,43.6774,3818.6,3818.5,2.30409]
[1754587308876,43.214,3818.6,3818.5,2.30409]
[1754587309369,41.8668,3818.6,3818.5,2.30409]
[1754587309573,41.4419,3818.6,3818.5,2.48359]
[1754587309763,41.4419,3818.6,3818.5,2.30409]
[1754587310271,42.058,3818.6,3818.5,2.30409]
[1754587310874,40.8,3818.6,3818.5,2.48359]
[1754587311074,1.156,3819.6,3819.5,1.56635]
[1754587311371,1.7721,3819.6,3819.5,2.30395]
[1754587311573,43.6774,3819.6,3819.5,0.52355]
[1754587312363,43.6774,3819.6,3819.2,0.7376]
[1754587312364,43.6774,3819.6,3819.4,0.52356]
[1754587312563,1.7214,3819.4,3819.3,0.52358]
[1754587312774,2.8774,3819.4,3819.3,0.52358]
[1754587313270,2.8774,3819.4,3819.2,0.52359]
[1754587313469,0.4249,3819.1,3819.0,0.52363]
[1754587313669,2.8774,3819.1,3819.0,0.52363]
[1754587314171,2.1043,3819.1,3819.0,1.56643]
[1754587314375,42.5214,3819.6,3819.5,0.83656]
[1754587314576,42.5214,3819.6,3819.5,0.52356]
[1754587315472,42.5214,3819.6,3819.5,2.30396]
[1754587316474,42.5214,3819.6,3819.5,1.87936]
[1754587316679,42.5214,3819.6,3819.5,0.52356]
[1754587318276,1.0795,3819.4,3819.3,0.52359]
[1754587318579,2.8774,3819.4,3819.3,0.52359]
[1754587318979,2.8774,3819.4,3819.3,1.45639]
[1754587319175,2.8774,3819.4,3819.3,1.87939]
[1754587319379,2.8774,3819.4,3819.3,2.30399]
[1754587319772,0.6419,3819.4,3819.3,2.30399]
[1754587319983,0.6419,3819.4,3819.3,2.48349]
[1754587320377,2.8774,3819.4,3819.3,2.30399]
[1754587320576,2.8774,3819.4,3819.3,1.87939]
[1754587320783,2.8774,3819.4,3819.3,0.52359]
[1754587320981,0.6419,3819.4,3819.3,0.52359]
[1754587321177,0.6419,3819.4,3819.3,2.30399]
[1754587321577,41.4419,3819.4,3819.3,2.30399]
[1754587322184,1.0,3820.0,3819.8,1.56632]
[1754587322185,2.2355,3819.9,3819.8,1.56632]
[1754587322483,1.0,3820.0,3819.8,1.56632]
[1754587322687,0.6419,3819.9,3819.8,1.56632]
[1754587322881,1.0,3820.0,3819.8,1.74582]
[1754587323182,42.4419,3820.0,3819.9,1.7804]
[1754587323883,43.5214,3820.0,3819.9,1.3558]
[1754587324083,43.5214,3820.0,3819.9,0.9328]
[1754587324786,1.156,3819.9,3819.8,0.52352]
[1754587324990,2.8774,3819.9,3819.8,0.52352]
[1754587326389,1.156,3819.9,3819.7,0.52353]
[1754587326687,2.8774,3819.7,3819.6,0.52354]
[1754587327393,2.8774,3819.6,3819.5,0.52355]
[1754587327693,2.8774,3819.6,3819.1,1.30904]
[1754587327694,1.156,3819.6,3819.1,1.30904]
[1754587327984,2.8774,3819.5,3819.4,0.52357]
[1754587328184,43.6774,3819.5,3819.4,0.52357]
[1754587330689,43.6774,3819.5,3819.4,2.54737]
[1754587332791,43.6774,3819.5,3819.4,0.94657]
[1754587333894,43.6774,3819.5,3819.4,0.52357]
[1754587334295,43.6774,3819.5,3819.4,2.48847]
[1754587335192,41.956,3819.5,3819.0,0.308]
[1754587335388,1.1823,3819.2,3818.6,2.94996084]
[1754587335595,2.9704,3818.6,3818.5,38.2227]
[1754587336092,43.7704,3818.6,3818.5,38.2227]
[1754587336301,43.7704,3818.6,3818.5,0.5237]
[1754587336994,43.7704,3818.6,3818.5,0.9475]
[1754587337194,43.7704,3818.6,3818.5,2.478]
[1754587337691,42.6516,3818.6,3818.5,2.478]
[1754587338092,43.7704,3818.6,3818.5,2.478]
[1754587339597,43.7704,3818.6,3818.5,0.5237]
[1754587339793,41.9823,3818.6,3818.4,0.52371]
[1754587339991,41.9823,3818.6,3817.8,3.63553084]
[1754587339992,1.7881,3818.4,3818.2,0.52372]
[1754587340194,2.9704,3818.3,3818.2,0.52372]
[1754587340501,2.9704,3818.3,3818.2,0.94752]
[1754587340700,2.9704,3818.3,3817.6,1.30955]
[1754587340701,1.8227,3817.8,3817.7,0.52379]
[1754587340899,2.9704,3817.8,3817.7,0.52379]
[1754587341396,0.4498,3817.6,3817.5,0.52383]
[1754587341601,1.1823,3817.6,3817.4,0.52384]
[1754587341795,2.9704,3817.5,3817.4,0.52385]
[1754587342101,1.4361,3817.5,3817.4,2.47815]
[1754587342299,2.9704,3817.3,3817.2,0.52387]
[1754587342898,2.9704,3817.3,3817.2,2.47817]
[1754587343098,0.6693,3817.3,3817.2,2.47817]
[1754587343298,41.4693,3817.3,3817.2,2.47817]
[1754587344090,42.1097,3817.3,3817.2,2.47817]
[1754587344294,42.5881,3817.3,3817.2,2.47817]
[1754587344500,42.5881,3817.3,3817.2,0.52387]
[1754587344901,0.317,3816.9,3816.8,0.7318]
[1754587345195,2.9704,3816.9,3816.8,2.47823]
[1754587345400,2.9704,3816.9,3816.8,20.67123]
[1754587345401,2.492,3816.9,3816.8,20.67123]
[1754587345592,2.9704,3816.9,3816.8,20.67123]
[1754587346105,42.5881,3817.3,3817.2,0.52387]
[1754587346698,41.4693,3817.3,3817.2,2.47817]
[1754587347504,42.5881,3817.3,3817.2,2.47817]
[1754587347999,42.5881,3817.3,3817.2,0.52387]
[1754587348704,42.5881,3817.3,3817.0,0.52389]
[1754587348905,1.1823,3817.1,3817.0,0.52389]
[1754587349099,2.9704,3817.1,3817.0,0.52389]
[1754587349693,2.9704,3817.1,3817.0,2.47819]
[1754587349899,0.6693,3817.1,3817.0,2.47819]
[1754587350197,41.4693,3817.3,3817.2,2.47817]
[1754587350693,41.4693,3817.3,3817.2,20.67317]
[1754587350894,40.8,3817.3,3817.2,20.84597]
[1754587351099,41.4693,3817.3,3817.2,20.67317]